{"text_format":"1","workbook":"xlsx","n_sheets":2,"sheets":["Main","Final"],"not_rendered":{"charts":0,"images":0,"macros":1,"external_links":0,"defined_names":1,"comments":0,"pivot_tables":0},"unopened":[],"bounds":{"document_bytes":16777216,"sheet_cells":100000,"rows_first":2000,"rows_last":500,"rows_between":2000,"halvings":0,"cell_chars":16384,"cell_head_chars":4096},"cells_cut":0,"cells_raw":0,"read":"whole","date_system":"1900"}

{"sheet":"Main","index":0,"n_rows":48,"n_cols":5,"rows_kept":48,"cut":false,"hidden":false,"merged":[]}
["Date","Transfer Type ","Company"]
["2020-07-11","Arrival","King Travel",null,{"$f":"MONTH(A2)","v":7}]
["2020-07-11","Arrival","Bella Travel",null,{"$f":"MONTH(A3)","v":7}]
["2020-07-11","Arrival","Agency Travel",null,7]
["2020-07-15","Arrival","King Travel",null,7]
["2020-07-15","Arrival","King Travel",null,7]
["2020-07-16","Arrival","Bella Travel",null,7]
["2020-07-16","Arrival","Agency Travel",null,{"$f":"MONTH(A8)","v":7}]
["2020-07-17","Arrival","Agency Travel",null,7]
["2020-07-17","Arrival","MasterLine Travel",null,7]
["2020-07-17","Departure","Bella Travel",null,7]
["2020-07-17","Departure","Bella Travel",null,7]
["2020-07-18","Departure","Agency Travel",null,7]
["2020-07-18","Departure","MasterLine Travel",null,{"$f":"MONTH(A14)","v":7}]
["2020-07-19","Departure","King Travel",null,7]
["2020-07-20","Departure","King Travel",null,7]
["2020-07-21","Departure","Bella Travel",null,7]
["2020-07-21","Departure","MasterLine Travel",null,7]
["2020-07-23","Departure","Bella Travel",null,7]
["2020-07-25","Departure","MasterLine Travel",null,7]
["2020-07-25","Departure","King Travel",null,7]
["2020-07-28","Departure","MasterLine Travel",null,7]
["2020-07-28","Departure","King Travel",null,7]
["2020-08-01","Departure","Bella Travel",null,8]
["2020-08-03","Departure","Agency Travel",null,8]
["2020-08-08","Departure","Agency Travel",null,8]
["2020-08-08","Arrival","King Travel",null,8]
["2020-08-08","Arrival","Bella Travel",null,8]
["2020-08-08","Arrival","King Travel",null,8]
["2020-08-08","Arrival","King Travel",null,8]
["2020-08-08","Arrival","MasterLine Travel",null,8]
["2020-08-12","Departure","Agency Travel",null,8]
["2020-08-12","Arrival","Bella Travel",null,8]
["2020-08-12","Arrival","MasterLine Travel",null,8]
["2020-08-12","Arrival","MasterLine Travel",null,8]
["2020-08-12","Arrival","Bella Travel",null,8]
["2020-08-12","Arrival","MasterLine Travel",null,8]
["2020-08-15","Arrival","Bella Travel",null,8]
["2020-08-15","Arrival","Agency Travel",null,8]
["2020-08-15","Arrival","Agency Travel",null,8]
["2020-09-15","Arrival","Agency Travel",null,9]
["2020-08-15","Arrival","Bella Travel",null,8]
["2020-08-15","Departure","Bella Travel",null,8]
["2020-09-20","Departure","MasterLine Travel",null,9]
["2020-08-15","Departure","King Travel",null,8]
["2020-08-15","Departure","Bella Travel",null,8]
["2020-08-15","Departure","MasterLine Travel",null,8]
["2020-08-11","Scuba Trip","Bella Travel",null,8]

{"sheet":"Final","index":1,"n_rows":14,"n_cols":5,"rows_kept":14,"cut":false,"hidden":false,"merged":[]}
["Company Name",null,null,"From ","Till"]
["From 01/07/2020 To 01/09/2020",null,null,"2020-07-01","2020-09-01"]
["King Travel",1,null,"2020-07-01","2020-08-31"]
["Bella Travel",2,null,"2020-09-01","2020-09-30"]
["Agency Travel",3]
["MasterLine Travel",4]
["From 01/07/2020 To 31/08/2020"]
["King Travel",1]
["Bella Travel",2]
["Agency Travel",3]
["MasterLine Travel",4]
["From 01/09/2020 To 30/09/2020"]
["Agency Travel",1]
["MasterLine Travel",2]